fUSD/lending_fUSD_20250306
["ID","MTS","AMOUNT","RATE_DAILY","PERIOD"]
[355548856,1741265447967,-500.0,0.00011776,2]
[355548857,1741265447977,-500.0,0.00011776,2]
[355548858,1741265447988,-500.0,0.00011776,2]
[355548859,1741265447997,-648.65,0.00011776,2]
[355548860,1741265448007,-500.0,0.00011776,2]
[355548861,1741265448017,-500.0,0.00011776,2]
[355548862,1741265448027,-500.0,0.00011776,2]
[355548863,1741265448037,-500.0,0.00011776,2]
[355548864,1741265448046,-544.06118326,0.00011776,2]
[355548865,1741265448056,-500.0,0.00011776,2]
[355548866,1741265448065,-504.67682301,0.00011776,2]
[355548867,1741265448075,-528.27353447,0.00011776,2]
[355548868,1741265448084,-500.0,0.00011776,2]
[355548869,1741265448094,-500.0,0.00011776,2]
[355548870,1741265448103,-500.0,0.00011776,2]
[355548871,1741265448112,-500.0,0.00011776,2]
[355548872,1741265448122,-500.0,0.00011776,2]
[355548873,1741265448131,-500.0,0.00011776,2]
[355548874,1741265448141,-556.54,0.00011776,2]
[355548875,1741265448150,-500.0,0.00011776,2]
[355548876,1741265448159,-523.06154779,0.00011776,2]
[355548877,1741265448169,-508.0194795,0.00011776,2]
[355548878,1741265448179,-500.0,0.00011776,2]
[355548879,1741265448188,-500.0,0.00011776,2]
[355548880,1741265448198,-500.0,0.00011776,2]
[355548881,1741265448207,-500.0,0.00011776,2]
[355548882,1741265448217,-500.0,0.00011776,2]
[355548883,1741265448227,-506.23789561,0.00011776,2]
[355548884,1741265448237,-520.01,0.00011776,2]
[355548885,1741265448247,-500.0,0.00011776,2]
[355548886,1741265448258,-594.76507119,0.00011776,2]
[355548887,1741265448268,-500.0,0.00011776,2]
[355548888,1741265448278,-500.0,0.00011776,2]
[355548889,1741265448288,-500.0,0.00011776,2]
[355548890,1741265448297,-500.0,0.00011776,2]
[355548891,1741265448307,-500.0,0.00011776,2]
[355548892,1741265448316,-501.64259094,0.00011776,2]
[355548893,1741265448326,-500.0,0.00011776,2]
[355548894,1741265448335,-500.0,0.00011776,2]
[355548895,1741265448345,-500.0,0.00011776,2]
[355548896,1741265448354,-500.0,0.00011776,2]
[355548897,1741265448364,-500.0,0.00011776,2]
[355548898,1741265448374,-500.0,0.00011776,2]
[355548899,1741265448383,-500.0,0.00011776,2]
[355548900,1741265448393,-500.0,0.00011776,2]
[355548901,1741265448402,-500.0,0.00011776,2]
[355548902,1741265448412,-500.0,0.00011776,2]
[355548903,1741265448422,-151.0,0.00011776,2]
[355548904,1741265448431,-633.94663049,0.00011776,2]
[355548905,1741265448441,-500.0,0.00011776,2]
[355548906,1741265448451,-504.30677376,0.00011776,2]
[355548907,1741265448460,-500.0,0.00011776,2]
[355548908,1741265448470,-500.0,0.00011776,2]
[355548909,1741265448479,-500.0,0.00011776,2]
[355548910,1741265448492,-500.0,0.00011776,2]
[355548911,1741265448502,-500.0,0.00011776,2]
[355548912,1741265448512,-502.40317005,0.00011776,2]
[355548913,1741265448523,-500.0,0.00011776,2]
[355548914,1741265448532,-500.0,0.00011776,2]
[355548915,1741265448542,-500.0,0.00011776,2]
[355548916,1741265448551,-500.0,0.00011776,2]
[355548917,1741265448560,-500.0,0.00011776,2]
[355548918,1741265448569,-500.0,0.00011776,2]
[355548919,1741265448578,-500.0,0.00011776,2]
[355548920,1741265448588,-500.0,0.00011776,2]
[355548921,1741265448597,-500.0,0.00011776,2]
[355548922,1741265448606,-500.0,0.00011776,2]
[355548923,1741265448616,-500.0,0.00011776,2]
[355548924,1741265448626,-500.0,0.00011776,2]
[355548925,1741265448635,-500.0,0.00011776,2]
[355548926,1741265448645,-500.0,0.00011776,2]
[355548927,1741265448654,-500.0,0.00011776,2]
[355548928,1741265448663,-500.0,0.00011776,2]
[355548929,1741265448673,-500.0,0.00011776,2]
[355548930,1741265448683,-500.0,0.00011776,2]
[355548931,1741265448694,-500.0,0.00011776,2]
[355548932,1741265448706,-500.0,0.00011776,2]
[355548933,1741265448716,-500.0,0.00011776,2]
[355548934,1741265448726,-500.0,0.00011776,2]
[355548935,1741265448738,-600.32,0.00011776,2]
[355548936,1741265448752,-500.0,0.00011776,2]
[355548937,1741265448762,-500.0,0.00011776,2]
[355548938,1741265448772,-500.0,0.00011776,2]
[355548939,1741265448783,-506.42338019,0.00011776,2]
[355548940,1741265448793,-500.0,0.00011776,2]
[355548941,1741265448804,-500.0,0.00011776,2]
[355548942,1741265448814,-500.0,0.00011776,2]
[355548943,1741265448823,-500.0,0.00011776,2]
[355548944,1741265448834,-500.0,0.00011776,2]
[355548945,1741265448843,-500.0,0.00011776,2]
[355548946,1741265448853,-500.0,0.00011776,2]
[355548947,1741265448863,-500.0,0.00011776,2]
[355548948,1741265448872,-500.0,0.00011776,2]
[355548949,1741265448882,-500.0,0.00011776,2]
[355548950,1741265448892,-709.62,0.00011776,2]
[355548951,1741265448901,-500.0,0.00011776,2]
[355548952,1741265448911,-500.0,0.00011776,2]
[355548953,1741265448921,-500.0,0.00011776,2]
[355548954,1741265448931,-500.0,0.00011776,2]
[355548955,1741265448941,-500.0,0.00011776,2]
[355548956,1741265448951,-500.0,0.00011776,2]
[355548957,1741265448961,-500.0,0.00011776,2]
[355548958,1741265448970,-500.0,0.00011776,2]
[355548959,1741265448980,-500.0,0.00011776,2]
[355548960,1741265448991,-500.0,0.00011776,2]
[355548961,1741265449002,-500.0,0.00011776,2]
[355548962,1741265449012,-500.0,0.00011776,2]
[355548963,1741265449022,-500.0,0.00011776,2]
[355548964,1741265449033,-510.92735234,0.00011776,2]
[355548965,1741265449043,-511.95302367,0.00011776,2]
[355548966,1741265449054,-500.0,0.00011776,2]
[355548967,1741265449065,-500.0,0.00011776,2]
[355548968,1741265449076,-500.0,0.00011776,2]
[355548969,1741265449086,-500.0,0.00011776,2]
[355548970,1741265449097,-500.0,0.00011776,2]
[355548971,1741265449107,-512.93,0.00011776,2]
[355548972,1741265449118,-500.0,0.00011776,2]
[355548973,1741265449128,-613.74,0.00011776,2]
[355548974,1741265449139,-500.0,0.00011776,2]
[355548975,1741265449150,-500.0,0.00011776,2]
[355548976,1741265449161,-500.0,0.00011776,2]
[355548977,1741265449171,-561.66015792,0.00011776,2]
[355548978,1741265449181,-500.0,0.00011776,2]
[355548979,1741265449191,-500.0,0.00011776,2]
[355548980,1741265449202,-352.85583704,0.00011776,2]
[355548981,1741265449212,-503.33927611,0.00011776,2]
[355548982,1741265449221,-500.0,0.00011776,2]
[355548983,1741265449231,-500.0,0.00011776,2]
[355548984,1741265449245,-500.0,0.00011776,2]
[355548985,1741265449254,-500.0,0.00011776,2]
[355548986,1741265449264,-500.0,0.00011776,2]
[355548987,1741265449273,-500.0,0.00011776,2]
[355548988,1741265449283,-500.0,0.00011776,2]
[355548989,1741265449293,-500.0,0.00011776,2]
[355548990,1741265449302,-500.0,0.00011776,2]
[355548991,1741265449312,-500.0,0.00011776,2]
[355548992,1741265449321,-775.2,0.00011776,2]
[355548993,1741265449332,-500.0,0.00011776,2]
[355548994,1741265449344,-500.0,0.00011776,2]
[355548995,1741265449355,-500.0,0.00011776,2]
[355548996,1741265449365,-500.0,0.00011776,2]
[355548997,1741265449375,-500.0,0.00011776,2]
[355548998,1741265449385,-500.0,0.00011776,2]
[355548999,1741265449395,-500.0,0.00011776,2]
[355549000,1741265449405,-500.0,0.00011776,2]
[355549001,1741265449415,-500.0,0.00011776,2]
[355549002,1741265449425,-318.24044449,0.00011776,2]
[355549003,1741265449435,-500.0,0.00011776,2]
[355549004,1741265449445,-500.0,0.00011776,2]
[355549005,1741265449455,-500.0,0.00011776,2]
[355549006,1741265449465,-500.0,0.00011776,2]
[355549007,1741265449474,-500.0,0.00011776,2]
[355549008,1741265449485,-500.0,0.00011776,2]
[355549009,1741265449497,-500.0,0.00011776,2]
[355549010,1741265449506,-546.43388387,0.00011776,2]
[355549011,1741265449518,-500.0,0.00011776,2]
[355549012,1741265449528,-500.0,0.00011776,2]
[355549013,1741265449537,-500.0,0.00011776,2]
[355549014,1741265449546,-500.0,0.00011776,2]
[355549015,1741265449556,-500.0,0.00011776,2]
[355549016,1741265449567,-500.0,0.00011776,2]
[355549017,1741265449576,-504.15998337,0.00011776,2]
[355549018,1741265449586,-500.0,0.00011776,2]
[355549019,1741265449595,-500.0,0.00011776,2]
[355549020,1741265449605,-500.0,0.00011776,2]
[355549021,1741265449614,-500.0,0.00011776,2]
[355549022,1741265449623,-500.0,0.00011776,2]
[355549023,1741265449633,-500.0,0.00011776,2]
[355549024,1741265449643,-500.0,0.00011776,2]
[355549025,1741265449652,-500.0,0.00011776,2]
[355549026,1741265449662,-500.0,0.00011776,2]
[355549027,1741265449671,-500.0,0.00011776,2]
[355549028,1741265449681,-500.0,0.00011776,2]
[355549029,1741265449691,-500.0,0.00011776,2]
[355549030,1741265449701,-500.0,0.00011776,2]
[355549031,1741265449713,-500.0,0.00011776,2]
[355549032,1741265449722,-740.23,0.00011776,2]
[355549033,1741265449731,-500.0,0.00011776,2]
[355549034,1741265449742,-500.0,0.00011776,2]
[355549035,1741265449751,-500.0,0.00011776,2]
[355549036,1741265449761,-500.0,0.00011776,2]
[355549037,1741265449770,-500.0,0.00011776,2]
[355549038,1741265449780,-501.41020249,0.00011776,2]
[355549039,1741265449789,-527.05,0.00011776,2]
[355549040,1741265449799,-500.0,0.00011776,2]
[355549041,1741265449808,-500.0,0.00011776,2]
[355549042,1741265449818,-500.0,0.00011776,2]
[355549043,1741265449827,-500.0,0.00011776,2]
[355549044,1741265449836,-500.0,0.00011776,2]
[355549045,1741265449845,-500.0,0.00011776,2]
[355549046,1741265449854,-500.0,0.00011776,2]
[355549047,1741265449863,-500.0,0.00011776,2]
[355549048,1741265449872,-753.5,0.00011776,2]
[355549049,1741265449881,-500.0,0.00011776,2]
[355549050,1741265449890,-500.0,0.00011776,2]
[355549051,1741265449899,-4681.89,0.00011776,2]
[355549052,1741265449908,-505.82661345,0.00011776,2]
[355549053,1741265449918,-497.44079497,0.00011776,2]
[355549054,1741265449926,-500.0,0.00011776,2]
[355549055,1741265449936,-506.78948593,0.00011776,2]
[355549056,1741265449945,-500.0,0.00011776,2]
[355549057,1741265449955,-500.38677264,0.00011776,2]
[355549058,1741265449964,-1081.39,0.00011776,2]
[355549059,1741265449973,-500.0,0.00011776,2]
[355549060,1741265449983,-500.0,0.00011776,2]
[355549061,1741265449994,-500.0,0.00011776,2]
[355549062,1741265450003,-1657.94,0.00011776,2]
[355549063,1741265450012,-500.0,0.00011776,2]
[355549064,1741265450022,-500.0,0.00011776,2]
[355549065,1741265450031,-10684.56,0.00011776,2]
[355549066,1741265450040,-500.0,0.00011776,2]
[355549067,1741265450050,-500.0,0.00011776,2]
[355549068,1741265450059,-500.0,0.00011776,2]
[355549069,1741265450068,-500.0,0.00011776,2]
[355549070,1741265450078,-5641.87,0.00011776,2]
[355549071,1741265450087,-559.97,0.00011776,2]
[355549072,1741265450097,-500.0,0.00011776,2]
[355549073,1741265450106,-907.77,0.00011776,2]
[355549074,1741265450116,-500.0,0.00011776,2]
[355549075,1741265450126,-500.0,0.00011776,2]
[355549076,1741265450136,-1487.35,0.00011776,2]
[355549077,1741265450145,-500.0,0.00011776,2]
[355549078,1741265450155,-9146.07,0.00011776,2]
[355549079,1741265450165,-500.0,0.00011776,2]
[355549080,1741265450175,-500.0,0.00011776,2]
[355549081,1741265450184,-637.82,0.00011776,2]
[355549082,1741265450193,-500.0,0.00011776,2]
[355549083,1741265450203,-1109.51,0.00011776,2]
[355549084,1741265450212,-500.0,0.00011776,2]
[355549085,1741265450221,-2419.53,0.00011776,2]
[355549086,1741265450231,-500.0,0.00011776,2]
[355549087,1741265450241,-500.0,0.00011776,2]
[355549088,1741265450251,-500.0,0.00011776,2]
[355549089,1741265450260,-1000.0,0.00011776,2]
[355549090,1741265450269,-2399.0,0.00011776,2]
[355549091,1741265450279,-1413.36,0.00011776,2]
[355549092,1741265450289,-500.0,0.00011776,2]
[355549093,1741265450298,-500.0,0.00011776,2]
[355549094,1741265450307,-1224.17,0.00011776,2]
[355549095,1741265450316,-500.0,0.00011776,2]
[355549096,1741265450325,-500.0,0.00011776,2]
[355549097,1741265450335,-500.0,0.00011776,2]
[355549098,1741265450345,-500.0,0.00011776,2]
[355549099,1741265450354,-470.764001,0.00011776,2]
[355549100,1741265450364,-470.764001,0.00011776,2]
[355549101,1741265450374,-470.764001,0.00011776,2]
[355549102,1741265450384,-470.764001,0.00011776,2]
[355549103,1741265450394,-470.764001,0.00011776,2]
[355549104,1741265450403,-470.764001,0.00011776,2]
[355549105,1741265450414,-500.0,0.00011776,2]
[355549106,1741265450424,-500.0,0.00011776,2]
[355549107,1741265450433,-500.0,0.00011776,2]
[355549108,1741265450443,-500.0,0.00011776,2]
[355549109,1741265450452,-1992.83,0.00011776,2]
[355549110,1741265450461,-300.0,0.00011776,2]
[355549111,1741265450470,-500.0,0.00011777,2]
[355549112,1741265450479,-151.0,0.00011777,2]
[355549113,1741265450491,-1834.51938821,0.00011779,3]
[355549114,1741265450500,-773.48,0.00011779,2]
[355549115,1741265450509,-773.48,0.00011779,2]
[355549116,1741265450519,-773.48,0.00011779,2]
[355549117,1741265450528,-470.764001,0.00011779,2]
[355549118,1741265450537,-470.764001,0.00011779,2]
[355549119,1741265450547,-2699.0,0.0001178,2]
[355549120,1741265450556,-586222.57871553,0.0001178,2]
[355549121,1741265451888,-409.48387185,0.0001178,2]
[355549122,1741265452582,-500.0,0.00011775,2]
[355549123,1741265452592,-44282.37927702,0.0001178,2]
[355549124,1741265452620,-13955.49268041,0.0001178,2]
[355549125,1741265452638,-401.73596284,0.0001178,2]
[355549126,1741265452650,-1775.47087103,0.0001178,2]
[355549127,1741265452662,-98791.0032945,0.0001178,2]
[355549128,1741265452672,-637213.69750784,0.0001178,2]
[355549129,1741265452682,-200.0,0.0001178,2]
[355549130,1741265452692,-151.0,0.0001178,2]
[355549131,1741265452703,-151.0,0.0001178,2]
[355549132,1741265452714,-183.0,0.0001178,3]
[355549133,1741265452724,-470.764001,0.0001178,2]
[355549134,1741265452734,-1233.44277,0.0001178,2]
[355549135,1741265452745,-470.764001,0.0001178,2]
[355549136,1741265452755,-1031.20056085,0.00011785,3]
[355549137,1741265453033,-1534.6508997,0.00011785,2]
[355549138,1741265453043,-4581.5241594,0.00011785,2]
[355549139,1741265453052,-494.110022,0.00011785,2]
[355549140,1741265453062,-1102.990033,0.00011785,2]
[355549141,1741265453072,-367.9350461,0.00011785,2]
[355549142,1741265453081,-1148.3039305,0.00011785,2]
[355549143,1741265453091,-1000.0,0.00011787,2]
[355549144,1741265453101,-5000.0,0.00011793,2]
[355549145,1741265453111,-2508.80368989,0.00011797,2]
[355549146,1741265453121,-539.3,0.000118,2]
[355549147,1741265453131,-7900.0,0.000118,4]
[355549148,1741265453141,-250.0,0.000118,2]
[355549149,1741265453150,-250.0,0.000118,2]
[355549150,1741265453160,-250.0,0.000118,2]
[355549151,1741265453170,-250.0,0.000118,2]
[355549152,1741265453179,-250.0,0.000118,2]
[355549153,1741265453188,-250.0,0.000118,2]
[355549154,1741265453198,-250.0,0.000118,2]
[355549155,1741265453208,-250.0,0.000118,2]
[355549156,1741265453218,-250.0,0.000118,2]
[355549157,1741265453227,-250.0,0.000118,2]
[355549158,1741265453237,-250.0,0.000118,2]
[355549159,1741265453248,-250.0,0.000118,2]
[355549160,1741265453258,-250.0,0.000118,2]
[355549161,1741265453267,-250.0,0.000118,2]
[355549162,1741265453277,-250.0,0.000118,2]
[355549163,1741265453287,-250.0,0.000118,2]
[355549164,1741265453297,-250.0,0.000118,2]
[355549165,1741265453307,-250.0,0.000118,2]
[355549166,1741265453317,-250.0,0.000118,2]
[355549167,1741265453327,-250.0,0.000118,2]
[355549168,1741265453337,-250.0,0.000118,2]
[355549169,1741265453347,-250.0,0.000118,2]
[355549170,1741265453358,-250.0,0.000118,2]
[355549171,1741265453367,-250.0,0.000118,2]
[355549172,1741265453377,-250.0,0.000118,2]
[355549173,1741265453386,-250.0,0.000118,2]
[355549174,1741265453396,-250.0,0.000118,2]
[355549175,1741265453405,-250.0,0.000118,2]
[355549176,1741265453415,-299.9,0.000118,2]
[355549177,1741265453425,-164.82579,0.00011812,2]
[355549178,1741265453434,-4907.1488788,0.00011812,2]
[355549179,1741265453444,-805.92100223,0.00011828,2]
[355549180,1741265453454,-1279.335,0.00011831,2]
[355549181,1741265453464,-2032.981,0.00011831,2]
[355549182,1741265453474,-150.0,0.00011831,2]
[355549183,1741265453484,-640.0,0.00011831,2]
[355549184,1741265453493,-571.0,0.00011831,2]
[355549185,1741265453503,-787.0,0.00011831,2]
[355549186,1741265453513,-1427.0,0.00011831,2]
[355549187,1741265453522,-1269.0,0.00011831,2]
[355549188,1741265453531,-907.0,0.00011831,2]
[355549189,1741265453541,-541.0,0.00011831,2]
[355549190,1741265453551,-4041.0,0.00011831,2]
[355549191,1741265453561,-277.308,0.00011831,2]
[355549192,1741265453572,-233.0,0.00011831,2]
[355549193,1741265453582,-1012.0,0.00011831,2]
[355549194,1741265453593,-150.761,0.00011831,2]
[355549195,1741265453603,-152.467,0.00011831,2]
[355549196,1741265453613,-150.0,0.00011831,2]
[355549197,1741265453623,-3930.0,0.00011831,2]
[355549198,1741265453633,-214.124,0.00011831,2]
[355549199,1741265453642,-150.0,0.00011831,2]
[355549200,1741265453653,-281.218,0.00011831,2]
[355549201,1741265453663,-1220.458,0.00011831,2]
[355549202,1741265453673,-250.0,0.00011831,2]
[355549203,1741265453682,-1000.0,0.00011837,2]
[355549204,1741265453692,-2508.80368989,0.00011866,2]
[355549205,1741265453704,-500.0,0.00011876,2]
[355549206,1741265453713,-150.0,0.00011876,2]
[355549207,1741265453723,-500.0,0.00011876,2]
[355549208,1741265453732,-500.0,0.00011876,2]
[355549209,1741265453745,-150.0,0.00011876,2]
[355549210,1741265453755,-500.0,0.00011876,2]
[355549211,1741265453765,-150.0,0.00011876,2]
[355549212,1741265453775,-3188.0,0.00011876,2]
[355549213,1741265453786,-875.0,0.00011876,2]
[355549214,1741265453796,-10500.0,0.000119,4]
[355549215,1741265453806,-470.764001,0.00011903,2]
[355549216,1741265453816,-470.764001,0.00011903,2]
[355549217,1741265453831,-500.0,0.00011903,2]
[355549218,1741265453841,-150.0,0.00011903,2]
[355549219,1741265453850,-500.0,0.00011903,2]
[355549220,1741265453860,-500.0,0.00011903,2]
[355549221,1741265453870,-962.60564151,0.00011903,2]
[355549222,1741265453880,-3188.0,0.00011903,2]
[355549223,1741265453890,-875.0,0.00011903,2]
[355549224,1741265453900,-288.08,0.00011915,2]
[355549225,1741265453909,-500.0,0.00011931,2]
[355549226,1741265453918,-150.0,0.00011931,2]
[355549227,1741265453928,-500.0,0.00011931,2]
[355549228,1741265453946,-500.0,0.00011931,2]
[355549229,1741265453962,-3188.0,0.00011931,2]
[355549230,1741265453973,-875.0,0.00011931,2]
[355549231,1741265453983,-2508.80368989,0.00011934,2]
[355549232,1741265453994,-4907.1488788,0.00011948,2]
[355549233,1741265454004,-970.91007022,0.00011958,2]
[355549234,1741265454013,-150.0,0.00011958,2]
[355549235,1741265454023,-500.0,0.00011958,2]
[355549236,1741265454033,-500.0,0.00011958,2]
[355549237,1741265454043,-3188.0,0.00011958,2]
[355549238,1741265454052,-875.0,0.00011958,2]
[355549239,1741265454062,-773.48,0.00011968,2]
[355549240,1741265454071,-278.53652192,0.00011986,2]
[355549241,1741265454081,-500.0,0.00011986,2]
[355549242,1741265454090,-500.0,0.00011986,2]
[355549243,1741265454100,-3188.0,0.00011986,2]
[355549244,1741265454110,-875.0,0.00011986,2]
[355549245,1741265454120,-1006.0,0.00012,2]
[355549246,1741265454130,-151.75503811,0.00012,2]
[355549247,1741265454140,-2508.80368989,0.00012003,2]
[355549248,1741265454150,-784.74981097,0.00012013,2]
[355549249,1741265454160,-645.19682771,0.00012013,2]
[355549250,1741265454169,-3188.0,0.00012013,2]
[355549251,1741265454179,-875.0,0.00012013,2]
[355549252,1741265454189,-31999.0,0.00012027,2]
[355549253,1741265454199,-151.0,0.00012038,2]
[355549254,1741265454208,-470.764001,0.0001204,2]
[355549255,1741265454218,-470.764001,0.0001204,2]
[355549256,1741265454227,-3188.0,0.0001204,2]
[355549257,1741265454237,-875.0,0.0001204,2]
[355549258,1741265454249,-727.96,0.00012048,2]
[355549259,1741265454262,-590.91,0.00012048,2]
[355549260,1741265454273,-500.0,0.00012048,2]
[355549261,1741265454282,-1294.04,0.00012048,2]
[355549262,1741265454292,-870.64,0.00012048,2]
[355549263,1741265454302,-1004.28,0.00012048,2]
[355549264,1741265454312,-500.0,0.00012048,2]
[355549265,1741265454321,-1489.08,0.00012048,2]
[355549266,1741265454331,-1183.14,0.00012048,2]
[355549267,1741265454341,-1580.5,0.00012048,2]
[355549268,1741265454352,-1331.79,0.00012048,2]
[355549269,1741265454363,-990.62,0.00012048,2]
[355549270,1741265454372,-800.89,0.00012048,2]
[355549271,1741265454382,-4238.81,0.00012048,2]
[355549272,1741265454391,-500.0,0.00012048,2]
[355549273,1741265454401,-1262.39,0.00012048,2]
[355549274,1741265454411,-654.61,0.00012048,2]
[355549275,1741265454420,-1247.02,0.00012048,2]
[355549276,1741265454430,-595.92,0.00012048,2]
[355549277,1741265454439,-500.0,0.00012048,2]
[355549278,1741265454449,-1164.16,0.00012048,2]
[355549279,1741265454458,-4314.28,0.00012048,2]
[355549280,1741265454467,-500.0,0.00012048,2]
[355549281,1741265454476,-938.84,0.00012048,2]
[355549282,1741265454486,-662.03,0.00012048,2]
[355549283,1741265454496,-730.37,0.00012048,2]
[355549284,1741265454506,-1288.39,0.00012048,2]
[355549285,1741265454515,-500.0,0.00012048,2]
[355549286,1741265454524,-500.0,0.00012048,2]
[355549287,1741265454534,-155.30883922,0.00012049,2]
[355549288,1741265454543,-500.0,0.00012049,2]
[355549289,1741265454552,-608.81,0.00012049,2]
[355549290,1741265454562,-680.21,0.00012049,2]
[355549291,1741265454571,-500.0,0.00012049,2]
[355549292,1741265454582,-750.34,0.00012049,2]
[355549293,1741265454591,-500.0,0.00012049,2]
[355549294,1741265454601,-500.0,0.00012049,2]
[355549295,1741265454611,-500.0,0.00012049,2]
[355549296,1741265454630,-500.0,0.00012049,2]
[355549297,1741265454641,-500.0,0.00012049,2]
[355549298,1741265454651,-500.0,0.00012049,2]
[355549299,1741265454661,-563.64,0.00012049,2]
[355549300,1741265454671,-500.0,0.00012049,2]
[355549301,1741265454680,-602.52,0.00012049,2]
[355549302,1741265454691,-500.0,0.00012049,2]
[355549303,1741265454706,-761.72,0.00012049,2]
[355549304,1741265454716,-712.747738,0.00012049,2]
[355549305,1741265454726,-500.0,0.00012049,2]
[355549306,1741265454737,-1085.79583,0.00012049,2]
[355549307,1741265454748,-500.0,0.00012049,2]
[355549308,1741265454758,-500.0,0.00012049,2]
[355549309,1741265454768,-500.0,0.00012049,2]
[355549310,1741265454778,-746.03,0.00012049,2]
[355549311,1741265454789,-500.0,0.00012049,2]
[355549312,1741265454800,-809.97,0.00012049,2]
[355549313,1741265454809,-500.0,0.00012049,2]
[355549314,1741265454819,-500.0,0.00012049,2]
[355549315,1741265454829,-871.51,0.00012049,2]
[355549316,1741265454839,-500.0,0.00012049,2]
[355549317,1741265454851,-510.08,0.00012049,2]
[355549318,1741265454861,-500.0,0.00012049,2]
[355549319,1741265454871,-500.0,0.00012049,2]
[355549320,1741265454883,-500.0,0.00012049,2]
[355549321,1741265454894,-781.91,0.00012049,2]
[355549322,1741265454904,-832.93,0.00012049,2]
[355549323,1741265454914,-500.0,0.00012049,2]
[355549324,1741265454925,-500.0,0.00012049,2]
[355549325,1741265454935,-907.3,0.00012049,2]
[355549326,1741265454946,-500.0,0.00012049,2]
[355549327,1741265454956,-649.43,0.00012049,2]
[355549328,1741265454968,-785.96,0.00012049,2]
[355549329,1741265454979,-641.41,0.00012049,2]
[355549330,1741265454989,-500.0,0.00012049,2]
[355549331,1741265454999,-372.53,0.00012049,2]
[355549332,1741265455010,-500.0,0.00012049,2]
[355549333,1741265455020,-500.0,0.00012049,2]
[355549334,1741265455030,-1301.7,0.00012049,2]
[355549335,1741265455039,-668.3,0.00012049,2]
[355549336,1741265455049,-271.9,0.00012049,2]
[355549337,1741265455059,-694.21,0.00012049,2]
[355549338,1741265455069,-1217.82,0.00012049,2]
[355549339,1741265455079,-2884.65,0.00012049,2]
[355549340,1741265455089,-569.81,0.00012049,2]
[355549341,1741265455099,-665.17,0.00012049,2]
[355549342,1741265455109,-500.0,0.00012049,2]
[355549343,1741265455119,-536.94,0.00012049,2]
[355549344,1741265455129,-957.77,0.00012049,2]
[355549345,1741265455139,-500.0,0.00012049,2]
[355549346,1741265455150,-2332.8,0.00012049,2]
[355549347,1741265455160,-1967.2,0.00012049,2]
[355549348,1741265455169,-3000.65,0.00012049,2]
[355549349,1741265455179,-775.58,0.00012049,2]
[355549350,1741265455189,-2779.69,0.00012049,2]
[355549351,1741265455198,-1272.16,0.00012049,2]
[355549352,1741265455208,-1363.55,0.00012049,2]
[355549353,1741265455217,-2086.38,0.00012049,2]
[355549354,1741265455227,-665.52,0.00012049,2]
[355549355,1741265455237,-589.17,0.00012049,2]